[Event "Late-Titled-Tuesday-Blitz-October-24-2023"]
[Site "Chess.com"]
[Date "2023.10.24"]
[Round "10"]
[White "ellatambien"]
[Black "sergiochess83"]
[Result "0-1"]
[WhiteElo "2666"]
[BlackElo "2883"]
[TimeControl "180+1"]
[EndTime "15:57:02 PDT"]
[Termination "sergiochess83 won on time"]

1. c4 {[%clk 0:03:00.9]} 1... g6 {[%clk 0:02:51.9]} 2. Nc3 {[%clk 0:02:59.3]}
2... c5 {[%clk 0:02:51.1]} 3. g3 {[%clk 0:02:54.3]} 3... Bg7 {[%clk 0:02:50.8]}
4. Bg2 {[%clk 0:02:54.2]} 4... Nc6 {[%clk 0:02:50.8]} 5. b3 {[%clk 0:02:49.8]}
5... d6 {[%clk 0:02:47.8]} 6. Bb2 {[%clk 0:02:49.9]} 6... Nh6 {[%clk 0:02:42.3]}
7. e3 {[%clk 0:02:42.7]} 7... Nf5 {[%clk 0:02:42.1]} 8. Nge2 {[%clk 0:02:39.2]}
8... O-O {[%clk 0:02:37.9]} 9. O-O {[%clk 0:02:34.2]} 9... h5 {[%clk 0:02:37.4]}
10. d3 {[%clk 0:02:29.3]} 10... Rb8 {[%clk 0:02:35.5]} 11. Qd2 {[%clk
0:02:28.1]} 11... Bd7 {[%clk 0:02:34.3]} 12. Ne4 {[%clk 0:02:24.6]} 12... Qa5
{[%clk 0:02:26.9]} 13. N2c3 {[%clk 0:02:17.5]} 13... a6 {[%clk 0:02:15]} 14. a3
{[%clk 0:02:13.2]} 14... Qd8 {[%clk 0:01:51.8]} 15. h3 {[%clk 0:02:05.8]} 15...
b5 {[%clk 0:01:45.9]} 16. Nd5 {[%clk 0:02:05]} 16... Bxb2 {[%clk 0:01:38.5]} 17.
Qxb2 {[%clk 0:02:05.9]} 17... bxc4 {[%clk 0:01:36.2]} 18. Ndf6+ {[%clk
0:01:51.6]} 18... exf6 {[%clk 0:01:33]} 19. Nxf6+ {[%clk 0:01:51.7]} 19... Qxf6
{[%clk 0:01:18.4]} 20. Qxf6 {[%clk 0:01:50.6]} 20... cxd3 {[%clk 0:01:13.9]} 21.
g4 {[%clk 0:01:50.1]} 21... hxg4 {[%clk 0:01:10.6]} 22. hxg4 {[%clk 0:01:51]}
22... Nfe7 {[%clk 0:01:09.5]} 23. Qxd6 {[%clk 0:01:50.1]} 23... Rfd8 {[%clk
0:01:08.2]} 24. Qxc5 {[%clk 0:01:48.3]} 24... Rxb3 {[%clk 0:01:00.4]} 25. Rfb1
{[%clk 0:01:48.2]} 25... Rxb1+ {[%clk 0:00:57.1]} 26. Rxb1 {[%clk 0:01:46.9]}
26... Bxg4 {[%clk 0:00:58]} 27. f3 {[%clk 0:01:38.6]} 27... Be6 {[%clk
0:00:51.8]} 28. Rd1 {[%clk 0:01:34.8]} 28... Bb3 {[%clk 0:00:33.6]} 29. Rd2
{[%clk 0:01:34]} 29... Bc2 {[%clk 0:00:33.8]} 30. f4 {[%clk 0:01:29.5]} 30...
Kf8 {[%clk 0:00:33.1]} 31. Bxc6 {[%clk 0:01:07.5]} 31... Rc8 {[%clk 0:00:33]}
32. Rxc2 {[%clk 0:01:07.8]} 32... dxc2 {[%clk 0:00:29.7]} 33. Qxc2 {[%clk
0:01:07.5]} 33... Rxc6 {[%clk 0:00:30]} 34. Qb2 {[%clk 0:01:05.9]} 34... f5
{[%clk 0:00:28.7]} 35. Kf2 {[%clk 0:01:03.3]} 35... Kf7 {[%clk 0:00:25.3]} 36.
Qb7 {[%clk 0:01:03.3]} 36... Re6 {[%clk 0:00:18.9]} 37. a4 {[%clk 0:01:00.6]}
37... Kf6 {[%clk 0:00:18.1]} 38. Qb2+ {[%clk 0:00:59.8]} 38... Kf7 {[%clk
0:00:18.2]} 39. a5 {[%clk 0:00:59.1]} 39... Rd6 {[%clk 0:00:14]} 40. Qe5 {[%clk
0:00:55.8]} 40... Rd5 {[%clk 0:00:12.1]} 41. Qc7 {[%clk 0:00:55.6]} 41... Rb5
{[%clk 0:00:10.4]} 42. Kg3 {[%clk 0:00:50.5]} 42... Ke6 {[%clk 0:00:02.5]} 43.
Kh4 {[%clk 0:00:48.4]} 43... Kf7 {[%clk 0:00:02.9]} 44. Kg5 {[%clk 0:00:47.8]}
44... Ke6 {[%clk 0:00:03.5]} 45. Qc4+ {[%clk 0:00:37.6]} 45... Kd6 {[%clk
0:00:03.7]} 46. Kf6 {[%clk 0:00:34.3]} 46... Nd5+ {[%clk 0:00:03.1]} 47. Kxg6
{[%clk 0:00:32.9]} 47... Nxe3 {[%clk 0:00:02.6]} 48. Qd3+ {[%clk 0:00:27.4]}
48... Nd5 {[%clk 0:00:03.5]} 49. Kxf5 {[%clk 0:00:26]} 49... Rxa5 {[%clk
0:00:03.7]} 50. Kg6 {[%clk 0:00:22]} 50... Ra4 {[%clk 0:00:03.1]} 51. f5 {[%clk
0:00:20.8]} 51... Rf4 {[%clk 0:00:03.1]} 52. Qxa6+ {[%clk 0:00:19]} 52... Ke5
{[%clk 0:00:03.7]} 53. Qe6+ {[%clk 0:00:17.5]} 53... Kd4 {[%clk 0:00:04.2]} 54.
Qe2 {[%clk 0:00:10.2]} 54... Re4 {[%clk 0:00:03.6]} 55. Qb2+ {[%clk 0:00:08.6]}
55... Kc5 {[%clk 0:00:03.1]} 56. f6 {[%clk 0:00:07.9]} 56... Re6 {[%clk
0:00:02.7]} 57. Qa3+ {[%clk 0:00:04.5]} 57... Kd4 {[%clk 0:00:02.6]} 58. Qa4+
{[%clk 0:00:03.5]} 58... Kc5 {[%clk 0:00:02.9]} 59. Qa5+ {[%clk 0:00:01.8]}
59... Kd4 {[%clk 0:00:03.4]} 60. Qd2+ {[%clk 0:00:01.8]} 60... Kc4 {[%clk
0:00:03.9]} 0-1

[Event "Late-Titled-Tuesday-Blitz-October-24-2023"]
[Site "Chess.com"]
[Date "2023.10.24"]
[Round "10"]
[White "ExchangeAB"]
[Black "effefe"]
[Result "0-1"]
[WhiteElo "2477"]
[BlackElo "2347"]
[TimeControl "180+1"]
[EndTime "15:57:06 PDT"]
[Termination "effefe won by resignation"]

1. d4 {[%clk 0:02:57.3]} 1... Nf6 {[%clk 0:02:59.8]} 2. Nc3 {[%clk 0:02:43]}
2... g6 {[%clk 0:02:58.7]} 3. e4 {[%clk 0:02:42.9]} 3... d6 {[%clk 0:02:55.8]}
4. Nf3 {[%clk 0:02:41.3]} 4... Bg7 {[%clk 0:02:54.1]} 5. Be2 {[%clk 0:02:41.7]}
5... c6 {[%clk 0:02:47.6]} 6. a4 {[%clk 0:02:40.4]} 6... a5 {[%clk 0:02:45.2]}
7. O-O {[%clk 0:02:40.3]} 7... O-O {[%clk 0:02:44.4]} 8. h3 {[%clk 0:02:40.3]}
8... Na6 {[%clk 0:02:38.7]} 9. Be3 {[%clk 0:02:39.5]} 9... Nb4 {[%clk
0:02:36.1]} 10. Qd2 {[%clk 0:02:39]} 10... e5 {[%clk 0:02:17.7]} 11. Rac1 {[%clk
0:02:35.5]} 11... Qc7 {[%clk 0:02:14.3]} 12. Rfd1 {[%clk 0:02:33.6]} 12... Nh5
{[%clk 0:02:10.2]} 13. dxe5 {[%clk 0:02:28.1]} 13... dxe5 {[%clk 0:02:02.1]} 14.
Bc5 {[%clk 0:02:02.3]} 14... Re8 {[%clk 0:01:47.3]} 15. Bf1 {[%clk 0:01:57.6]}
15... Nf4 {[%clk 0:01:44.3]} 16. Ne2 {[%clk 0:01:49]} 16... Be6 {[%clk 0:01:28]}
17. Nxf4 {[%clk 0:01:45.2]} 17... exf4 {[%clk 0:01:27.2]} 18. Bxb4 {[%clk
0:01:36.7]} 18... axb4 {[%clk 0:01:25.6]} 19. Qxb4 {[%clk 0:01:37.6]} 19... h6
{[%clk 0:01:14.2]} 20. Nd4 {[%clk 0:01:13.3]} 20... Bd7 {[%clk 0:00:55.1]} 21.
Nf3 {[%clk 0:00:59.4]} 21... c5 {[%clk 0:00:44.5]} 22. Qd2 {[%clk 0:00:40.8]}
22... Bxa4 {[%clk 0:00:38.9]} 23. b3 {[%clk 0:00:39.9]} 23... Bc6 {[%clk
0:00:37.8]} 24. Bd3 {[%clk 0:00:37.9]} 24... Bxe4 {[%clk 0:00:32.2]} 25. Bxe4
{[%clk 0:00:38.8]} 25... Rxe4 {[%clk 0:00:31.9]} 26. Qd7 {[%clk 0:00:35]} 26...
Re7 {[%clk 0:00:25.8]} 27. Qxc7 {[%clk 0:00:34.7]} 27... Rxc7 {[%clk 0:00:26.7]}
28. Rd5 {[%clk 0:00:32.1]} 28... g5 {[%clk 0:00:24.7]} 29. h4 {[%clk 0:00:30.3]}
29... g4 {[%clk 0:00:20.8]} 30. Ne5 {[%clk 0:00:29.7]} 30... Re7 {[%clk
0:00:15.5]} 31. Nxg4 {[%clk 0:00:26.9]} 31... b6 {[%clk 0:00:07.1]} 32. f3
{[%clk 0:00:18]} 32... Rae8 {[%clk 0:00:07.4]} 33. Kh2 {[%clk 0:00:17.6]} 33...
Re6 {[%clk 0:00:07.5]} 34. Rcd1 {[%clk 0:00:17.4]} 34... Re2 {[%clk 0:00:06.9]}
35. R5d2 {[%clk 0:00:16.3]} 35... Rxd2 {[%clk 0:00:06.6]} 36. Rxd2 {[%clk
0:00:17.2]} 36... Bd4 {[%clk 0:00:06.8]} 37. Kh3 {[%clk 0:00:15.5]} 37... Kh7
{[%clk 0:00:06.9]} 38. h5 {[%clk 0:00:14]} 38... Re1 {[%clk 0:00:05.8]} 39. Kh2
{[%clk 0:00:13.3]} 39... Kg7 {[%clk 0:00:06.2]} 40. g3 {[%clk 0:00:13.3]} 40...
fxg3+ {[%clk 0:00:05.6]} 41. Kxg3 {[%clk 0:00:13.4]} 41... f5 {[%clk 0:00:05.9]}
42. Nh2 {[%clk 0:00:11.9]} 42... Kf6 {[%clk 0:00:04.8]} 43. Kg2 {[%clk
0:00:12.1]} 43... Rc1 {[%clk 0:00:03.9]} 44. Nf1 {[%clk 0:00:11.9]} 44... Bc3
{[%clk 0:00:03.5]} 45. Re2 {[%clk 0:00:12.2]} 45... Bd4 {[%clk 0:00:02.8]} 46.
Ng3 {[%clk 0:00:11.7]} 46... Kg5 {[%clk 0:00:02.9]} 47. Kh2 {[%clk 0:00:10.8]}
47... f4 {[%clk 0:00:03.3]} 48. Ne4+ {[%clk 0:00:10.9]} 48... Kxh5 {[%clk
0:00:03.7]} 49. Nd6 {[%clk 0:00:10.5]} 49... Kg6 {[%clk 0:00:03.8]} 50. Nc4
{[%clk 0:00:10.9]} 50... b5 {[%clk 0:00:03.7]} 51. Nd6 {[%clk 0:00:11.4]} 51...
b4 {[%clk 0:00:03.4]} 52. Nc4 {[%clk 0:00:11.7]} 52... Kf5 {[%clk 0:00:03.6]}
53. Nd6+ {[%clk 0:00:11.3]} 53... Kf6 {[%clk 0:00:03]} 54. Ne4+ {[%clk
0:00:12.2]} 54... Kf5 {[%clk 0:00:01.5]} 55. Nd6+ {[%clk 0:00:12.5]} 55... Kg5
{[%clk 0:00:02]} 56. Nc4 {[%clk 0:00:13.4]} 56... Kh5 {[%clk 0:00:02.5]} 57. Rg2
{[%clk 0:00:13]} 57... Rf1 {[%clk 0:00:02.4]} 58. Nd6 {[%clk 0:00:12.2]} 58...
Rxf3 {[%clk 0:00:02.7]} 59. Ne4 {[%clk 0:00:11.7]} 59... Re3 {[%clk 0:00:02.9]}
60. Nf2 {[%clk 0:00:10.8]} 60... f3 {[%clk 0:00:02.8]} 61. Rg3 {[%clk
0:00:10.9]} 61... Re2 {[%clk 0:00:02.9]} 62. Rxf3 {[%clk 0:00:11.3]} 62... Rxf2+
{[%clk 0:00:03.2]} 63. Rxf2 {[%clk 0:00:11.4]} 63... Bxf2 {[%clk 0:00:04.1]} 64.
Kg2 {[%clk 0:00:11.9]} 64... Bd4 {[%clk 0:00:04.8]} 65. Kh3 {[%clk 0:00:12.8]}
65... Kg5 {[%clk 0:00:05.2]} 66. Kg2 {[%clk 0:00:13.7]} 66... Kf4 {[%clk
0:00:05.7]} 67. Kh3 {[%clk 0:00:14.6]} 67... Ke3 {[%clk 0:00:06.2]} 68. Kg2
{[%clk 0:00:15.5]} 68... Kd2 {[%clk 0:00:06.8]} 69. Kh2 {[%clk 0:00:16.4]} 69...
Kxc2 {[%clk 0:00:07.5]} 70. Kh3 {[%clk 0:00:17.3]} 70... Kxb3 {[%clk 0:00:08.2]}
71. Kh2 {[%clk 0:00:18.2]} 71... Kc2 {[%clk 0:00:08.9]} 72. Kh3 {[%clk
0:00:19.1]} 72... b3 {[%clk 0:00:09.7]} 73. Kh4 {[%clk 0:00:20]} 73... b2 {[%clk
0:00:10.6]} 74. Kh5 {[%clk 0:00:20.9]} 74... b1=Q {[%clk 0:00:11.3]} 0-1

[Event "Late-Titled-Tuesday-Blitz-October-24-2023"]
[Site "Chess.com"]
[Date "2023.10.24"]
[Round "10"]
[White "Binary010"]
[Black "koncheto"]
[Result "1/2-1/2"]
[WhiteElo "2817"]
[BlackElo "2574"]
[TimeControl "180+1"]
[EndTime "15:57:07 PDT"]
[Termination "Game drawn by repetition"]

1. e4 {[%clk 0:03:00.9]} 1... c5 {[%clk 0:02:59.9]} 2. Nf3 {[%clk 0:03:00.6]}
2... d6 {[%clk 0:03:00.2]} 3. d4 {[%clk 0:03:00.7]} 3... cxd4 {[%clk 0:03:01.1]}
4. Nxd4 {[%clk 0:03:00.9]} 4... Nf6 {[%clk 0:03:01.8]} 5. Nc3 {[%clk 0:03:01.4]}
5... Nc6 {[%clk 0:03:02.4]} 6. Bg5 {[%clk 0:03:00.7]} 6... e6 {[%clk 0:03:02.7]}
7. Qd2 {[%clk 0:03:01.2]} 7... a6 {[%clk 0:03:02.7]} 8. O-O-O {[%clk 0:03:01.2]}
8... Bd7 {[%clk 0:03:02.6]} 9. Kb1 {[%clk 0:03:01.3]} 9... Be7 {[%clk
0:02:57.3]} 10. Nxc6 {[%clk 0:03:00.6]} 10... Bxc6 {[%clk 0:02:55.4]} 11. f3
{[%clk 0:03:00.8]} 11... h6 {[%clk 0:02:53.8]} 12. Be3 {[%clk 0:02:55.8]} 12...
b5 {[%clk 0:02:48.4]} 13. Ne2 {[%clk 0:02:53.4]} 13... Rc8 {[%clk 0:02:42]} 14.
Nd4 {[%clk 0:02:52.6]} 14... Bb7 {[%clk 0:02:41.8]} 15. Bd3 {[%clk 0:02:51.7]}
15... Nd7 {[%clk 0:02:36]} 16. Rhe1 {[%clk 0:02:44.3]} 16... d5 {[%clk 0:02:32]}
17. exd5 {[%clk 0:01:53.5]} 17... Bxd5 {[%clk 0:02:32.9]} 18. Bf1 {[%clk
0:01:53.6]} 18... O-O {[%clk 0:02:16.3]} 19. Nf5 {[%clk 0:01:45.3]} 19... Bf6
{[%clk 0:02:01.6]} 20. Nd6 {[%clk 0:01:21.8]} 20... Rc6 {[%clk 0:01:41.1]} 21.
Ne4 {[%clk 0:01:16.8]} 21... Be7 {[%clk 0:01:40.5]} 22. Bd4 {[%clk 0:01:08.6]}
22... Nf6 {[%clk 0:01:29.4]} 23. Nc3 {[%clk 0:00:56.7]} 23... Bc4 {[%clk
0:01:08]} 24. Bxc4 {[%clk 0:00:56.4]} 24... Rxc4 {[%clk 0:01:07.6]} 25. b3
{[%clk 0:00:56.6]} 25... Rc6 {[%clk 0:01:02.6]} 26. Qf4 {[%clk 0:00:39.2]} 26...
Qa5 {[%clk 0:00:57.2]} 27. Ne4 {[%clk 0:00:31.5]} 27... Nxe4 {[%clk 0:00:32.8]}
28. Qxe4 {[%clk 0:00:31.5]} 28... Rfc8 {[%clk 0:00:30.9]} 29. Re2 {[%clk
0:00:30.9]} 29... Rd6 {[%clk 0:00:19.5]} 30. Qe5 {[%clk 0:00:11.2]} 30... Bf8
{[%clk 0:00:19.5]} 31. Red2 {[%clk 0:00:09.6]} 31... Rcd8 {[%clk 0:00:17.7]} 32.
Bc3 {[%clk 0:00:09.5]} 32... Qb6 {[%clk 0:00:07.2]} 33. Rxd6 {[%clk 0:00:07.1]}
33... Rxd6 {[%clk 0:00:08.1]} 34. Rxd6 {[%clk 0:00:06.1]} 34... Qxd6 {[%clk
0:00:09]} 35. Qxd6 {[%clk 0:00:06.4]} 35... Bxd6 {[%clk 0:00:09.9]} 36. h3
{[%clk 0:00:06.7]} 36... g6 {[%clk 0:00:09.4]} 37. Bf6 {[%clk 0:00:06]} 37...
Kf8 {[%clk 0:00:08.6]} 38. c4 {[%clk 0:00:06]} 38... bxc4 {[%clk 0:00:06]} 39.
bxc4 {[%clk 0:00:06.9]} 39... Ke8 {[%clk 0:00:06.7]} 40. Kc2 {[%clk 0:00:07.2]}
40... Kd7 {[%clk 0:00:07.2]} 41. Kd3 {[%clk 0:00:05]} 41... Kc6 {[%clk
0:00:07.8]} 42. Bd4 {[%clk 0:00:05.2]} 42... f5 {[%clk 0:00:06.8]} 43. Bg7
{[%clk 0:00:04.2]} 43... h5 {[%clk 0:00:07.2]} 44. Kd4 {[%clk 0:00:03.7]} 44...
Bc7 {[%clk 0:00:06.4]} 45. Be5 {[%clk 0:00:03.3]} 45... Bb6+ {[%clk 0:00:06.9]}
46. Kd3 {[%clk 0:00:03.4]} 46... Bc5 {[%clk 0:00:06.9]} 47. h4 {[%clk
0:00:02.4]} 47... Bf2 {[%clk 0:00:06.8]} 48. g3 {[%clk 0:00:02.7]} 48... Kc5
{[%clk 0:00:06]} 49. Bf4 {[%clk 0:00:02.1]} 49... Be1 {[%clk 0:00:05]} 50. Be5
{[%clk 0:00:02]} 50... Bf2 {[%clk 0:00:04.4]} 51. Bf4 {[%clk 0:00:02.6]} 51...
Be1 {[%clk 0:00:04.8]} 52. Be3+ {[%clk 0:00:02.9]} 52... Kc6 {[%clk 0:00:05.1]}
53. Bf4 {[%clk 0:00:03.4]} 53... Bf2 {[%clk 0:00:04.6]} 54. Kc3 {[%clk 0:00:03]}
54... Bg1 {[%clk 0:00:03.5]} 55. Kd3 {[%clk 0:00:02.7]} 55... Bc5 {[%clk
0:00:04.1]} 56. Kc3 {[%clk 0:00:03]} 56... Be7 {[%clk 0:00:03.9]} 57. Be5 {[%clk
0:00:02.9]} 57... Bd8 {[%clk 0:00:03.7]} 58. Kd4 {[%clk 0:00:03.1]} 58... Bb6+
{[%clk 0:00:04]} 59. Kc3 {[%clk 0:00:03.6]} 59... Bf2 {[%clk 0:00:03.5]} 60. Kd3
{[%clk 0:00:03.8]} 60... Be1 {[%clk 0:00:03.8]} 61. Bf4 {[%clk 0:00:03.3]} 61...
Ba5 {[%clk 0:00:04.2]} 62. Be5 {[%clk 0:00:03.3]} 62... Bb6 {[%clk 0:00:04.5]}
63. Kc3 {[%clk 0:00:03.5]} 63... Bd8 {[%clk 0:00:04.8]} 64. Kd3 {[%clk
0:00:03.8]} 64... Be7 {[%clk 0:00:04.9]} 65. Kc3 {[%clk 0:00:04]} 65... Bc5
{[%clk 0:00:05.2]} 66. Kd3 {[%clk 0:00:04.4]} 66... Be7 {[%clk 0:00:05.5]} 67.
Kc3 {[%clk 0:00:04.6]} 1/2-1/2

[Event "Late-Titled-Tuesday-Blitz-October-24-2023"]
[Site "Chess.com"]
[Date "2023.10.24"]
[Round "10"]
[White "hblanco"]
[Black "iJueles"]
[Result "1-0"]
[WhiteElo "2719"]
[BlackElo "2470"]
[TimeControl "180+1"]
[EndTime "15:57:11 PDT"]
[Termination "hblanco won by resignation"]

1. e4 {[%clk 0:02:55.2]} 1... c6 {[%clk 0:03:00.1]} 2. d4 {[%clk 0:02:54.4]}
2... d5 {[%clk 0:03:00.4]} 3. exd5 {[%clk 0:02:54.8]} 3... cxd5 {[%clk
0:03:00.4]} 4. Bd3 {[%clk 0:02:55.5]} 4... Nc6 {[%clk 0:03:00.1]} 5. c3 {[%clk
0:02:56.2]} 5... Qc7 {[%clk 0:03:00.3]} 6. h3 {[%clk 0:02:56.3]} 6... e6 {[%clk
0:03:00.7]} 7. Nf3 {[%clk 0:02:56.4]} 7... Bd6 {[%clk 0:03:00.1]} 8. O-O {[%clk
0:02:54.4]} 8... Nge7 {[%clk 0:03:00]} 9. Re1 {[%clk 0:02:48.4]} 9... O-O {[%clk
0:02:59.9]} 10. Bxh7+ {[%clk 0:02:25.8]} 10... Kxh7 {[%clk 0:02:59.8]} 11. Ng5+
{[%clk 0:02:26.4]} 11... Kg6 {[%clk 0:03:00.4]} 12. Qg4 {[%clk 0:02:26.1]} 12...
f5 {[%clk 0:03:01.1]} 13. Qh4 {[%clk 0:02:26.3]} 13... f4 {[%clk 0:03:00]} 14.
Qg4 {[%clk 0:01:27.9]} 14... e5 {[%clk 0:01:51.9]} 15. Ne6+ {[%clk 0:01:27.3]}
15... Kf7 {[%clk 0:01:45.2]} 16. Qxg7+ {[%clk 0:01:07.1]} 16... Kxe6 {[%clk
0:01:45.4]} 17. Qxf8 {[%clk 0:01:08]} 17... Ng6 {[%clk 0:01:29.7]} 18. Qh6
{[%clk 0:01:06.8]} 18... Kf6 {[%clk 0:01:25.9]} 19. dxe5+ {[%clk 0:01:03.1]}
19... Bxe5 {[%clk 0:01:25.5]} 20. Nd2 {[%clk 0:01:03.6]} 20... Bf5 {[%clk
0:01:24.6]} 21. Nf3 {[%clk 0:01:03.9]} 21... Be4 {[%clk 0:01:10.7]} 22. Qg5+
{[%clk 0:00:50]} 22... Kg7 {[%clk 0:01:10.9]} 23. Nxe5 {[%clk 0:00:16.5]} 23...
Qxe5 {[%clk 0:01:06.1]} 24. Qxe5+ {[%clk 0:00:16.5]} 24... Ncxe5 {[%clk
0:01:07]} 25. f3 {[%clk 0:00:16.5]} 25... Nd3 {[%clk 0:00:59.5]} 26. Rd1 {[%clk
0:00:14]} 26... Bf5 {[%clk 0:00:57.8]} 27. Bd2 {[%clk 0:00:13]} 27... Re8 {[%clk
0:00:57.3]} 28. Kf1 {[%clk 0:00:13.1]} 28... Nxb2 {[%clk 0:00:56.2]} 29. Re1
{[%clk 0:00:12.5]} 29... Bd3+ {[%clk 0:00:54.3]} 30. Kg1 {[%clk 0:00:10.3]}
30... Rxe1+ {[%clk 0:00:54.3]} 31. Rxe1 {[%clk 0:00:09.8]} 31... Nc4 {[%clk
0:00:54.3]} 32. Rd1 {[%clk 0:00:09]} 32... Bc2 {[%clk 0:00:54]} 33. Rc1 {[%clk
0:00:09]} 33... Bd3 {[%clk 0:00:52.5]} 34. Rd1 {[%clk 0:00:09]} 34... Be2 {[%clk
0:00:44.3]} 35. Re1 {[%clk 0:00:09.2]} 35... Bd3 {[%clk 0:00:39.2]} 36. Bc1
{[%clk 0:00:09.2]} 36... Kf7 {[%clk 0:00:35.9]} 37. Kf2 {[%clk 0:00:09.8]} 37...
Bf5 {[%clk 0:00:33]} 38. h4 {[%clk 0:00:10.2]} 38... Nce5 {[%clk 0:00:27.3]} 39.
Rd1 {[%clk 0:00:08]} 39... Nd3+ {[%clk 0:00:26.7]} 40. Kg1 {[%clk 0:00:08.4]}
40... Nxc1 {[%clk 0:00:27.1]} 41. Rxc1 {[%clk 0:00:08.2]} 41... Nxh4 {[%clk
0:00:27.8]} 42. Rd1 {[%clk 0:00:09.1]} 42... Be6 {[%clk 0:00:28.2]} 43. Rb1
{[%clk 0:00:09.6]} 43... b6 {[%clk 0:00:27.8]} 44. Rb4 {[%clk 0:00:10.2]} 44...
Ng6 {[%clk 0:00:27.7]} 45. Ra4 {[%clk 0:00:10.7]} 45... a5 {[%clk 0:00:27.7]}
46. Ra3 {[%clk 0:00:11.6]} 46... Kf6 {[%clk 0:00:28]} 47. Rb3 {[%clk 0:00:11.8]}
47... Ne5 {[%clk 0:00:25.9]} 48. Rxb6 {[%clk 0:00:12.7]} 48... Nc4 {[%clk
0:00:26.1]} 49. Rb8 {[%clk 0:00:12.1]} 49... Ke5 {[%clk 0:00:26.5]} 50. Kf2
{[%clk 0:00:11.4]} 50... Ne3 {[%clk 0:00:26]} 51. Ra8 {[%clk 0:00:10.2]} 51...
Nd1+ {[%clk 0:00:26.4]} 52. Ke1 {[%clk 0:00:09.8]} 52... Nxc3 {[%clk 0:00:25.1]}
53. Rxa5 {[%clk 0:00:10.7]} 53... Kd4 {[%clk 0:00:24.8]} 54. a3 {[%clk
0:00:11.2]} 54... Ke3 {[%clk 0:00:24]} 55. Ra6 {[%clk 0:00:10.2]} 55... Bf5
{[%clk 0:00:24.1]} 56. Rf6 {[%clk 0:00:10.1]} 56... Bd7 {[%clk 0:00:22.3]} 57.
Rf7 {[%clk 0:00:08.8]} 57... Bb5 {[%clk 0:00:22]} 58. Re7+ {[%clk 0:00:09.3]}
58... Kd3 {[%clk 0:00:22]} 59. Rf7 {[%clk 0:00:09.8]} 59... d4 {[%clk
0:00:19.5]} 60. Rxf4 {[%clk 0:00:09.9]} 60... Nd5 {[%clk 0:00:19.6]} 61. Rf5
{[%clk 0:00:09.9]} 61... Ne3 {[%clk 0:00:20.1]} 62. Rxb5 {[%clk 0:00:09.8]}
62... Nxg2+ {[%clk 0:00:19.9]} 63. Kf2 {[%clk 0:00:10]} 63... Ne3 {[%clk
0:00:19.9]} 64. a4 {[%clk 0:00:10.1]} 64... Kc4 {[%clk 0:00:18.7]} 65. Rb8
{[%clk 0:00:09.1]} 65... Nd5 {[%clk 0:00:18]} 66. a5 {[%clk 0:00:09.2]} 66... d3
{[%clk 0:00:18.2]} 67. a6 {[%clk 0:00:09.6]} 67... Kc3 {[%clk 0:00:17.4]} 68.
Rd8 {[%clk 0:00:09]} 68... Nc7 {[%clk 0:00:10.8]} 69. a7 {[%clk 0:00:09]} 69...
Kc2 {[%clk 0:00:11.2]} 70. Ke3 {[%clk 0:00:08.4]} 70... d2 {[%clk 0:00:08.4]}
71. Rxd2+ {[%clk 0:00:08.5]} 1-0